Workbook

Sheet PRODUCTOS
A2: BUSCA MODELO: | E2: RESUMEN
F3: TALLAS TALLAS TALLAS TALLAS TALLAS TALLAS TALLAS TALLAS TALLAS TALLAS
A4: TITULO | B4: MODELO | C4: CATEGORIA | D4: SUBCATEGORIA | E4: CORRIDA DE TALLAS | F4: 11 (cant.) | G4: 12 (cant.) | H4: 13 (cant.) | I4: 14 (cant.) | J4: 15 (cant.) | K4: 16 (cant.) | L4: 17 (cant.) | M4: 18 (cant.) | N4: 19 (cant.) | O4: 20 (cant.) | P4: 21 (cant.) | Q4: 22 (cant.) | R4: 23 (cant.) | S4: 24 (cant.) | T4: 25 (cant.) | U4: 26 (cant.) | V4: 27 (cant.) | W4: 28 (cant.) | X4: 29 (cant.) | Y4: Total de pares | Z4: Subtotal | AA4: Descuento en % | AB4: Descuento en $$ | AC4: Total | AE4: Precio Sugerido a la venta | AF4: Ganancias por modelo en $ | AG4: Ganancias por modelo %% | AH4: Precio unitario antes de descuento (por menudeo) Solo referencia | AI4: PRECIO DE VENTA SUGERIDO | AJ4: 0.05 | AK4: 0.1 | AL4: 0.15 | AM4: 0.2 | AN4: 0.25
A5: SANDALIAS DE VESTIR CASUALES TACONES LEON DAMA MUJER GAMUZA DURAZNO ROJO 0 | B5: 0 | C5: MUJER | D5: SANDALIAS DE VESTIR Y FIESTA | E5: 23-27 | Y5: =SUM(F5:X5) -> 0 | Z5: =AH5*Y5 -> 0 | AA5: =AA3239 ->  | AB5: =Z5*AA5 ->  | AC5: =Z5-AB5 ->  | AE5: =Z5*1.1 -> 0 | AF5: =AE5-AC5 ->  | AG5: =(AE5/AC5)-1 ->  | AH5: 529 | AI5: =AH5*1.1 -> 581.9 | AJ5: =AH5*0.95 -> 502.55 | AK5: =AH5*0.9 -> 476.1 | AL5: =AH5*0.85 -> 449.65 | AM5: =AH5*0.8 -> 423.2 | AN5: =AH5*0.75 -> 396.75
A6: SANDALIAS EVA GREEN MUJER NEGRO PLASTICO 001 | B6: 001 | C6: MUJER | D6: SANDALIA | E6: 23-27 | Y6: 0 | Z6: 0 | AA6: =AA5 ->  | AE6: 0 | AH6: 179 | AI6: 196.9 | AJ6: 170.05 | AK6: 161.1 | AL6: 152.15 | AM6: 143.2 | AN6: 134.25
A7: ZAPATO DE VESTIR LEON HOMBRE CABALLERO CHAROL NEGRO 0011 | B7: 0011 | C7: HOMBRE | D7: ZAPATOS DE VESTIR | E7: 26-29 | Y7: 0 | Z7: 0 | AE7: 0 | AH7: 1109 | AI7: 1219.9 | AJ7: 1053.55 | AK7: 998.1 | AL7: 942.65 | AM7: 887.2 | AN7: 831.75
A8: BOTA DE TRABAJO CLIFF HOMBRE NEGRO HULE 0025 | B8: 0025 | C8: HOMBRE | D8: BOTAS DE TRABAJO | E8: 25-29 | Y8: 0 | Z8: 0 | AE8: 0 | AH8: 379 | AI8: 416.9 | AJ8: 360.05 | AK8: 341.1 | AL8: 322.15 | AM8: 303.2 | AN8: 284.25
A9: TENIS CASUAL LEON NIÑO BLANCO SINTETICO 004 | B9: 004 | C9: NIÑO | D9: TENIS | E9: 15-21 | Y9: 0 | Z9: 0 | AE9: 0 | AH9: 399 | AI9: 438.9 | AJ9: 379.05 | AK9: 359.1 | AL9: 339.15 | AM9: 319.2 | AN9: 299.25
A10: TENIS CASUAL LEON MUJER BLANCO SINTETICO 0047Q01 | B10: 0047Q01 | C10: MUJER | D10: TENIS | E10: 23-27 | Y10: 0 | Z10: 0 | AE10: 0 | AH10: 555 | AI10: 610.5 | AJ10: 527.25 | AK10: 499.5 | AL10: 471.75 | AM10: 444 | AN10: 416.25
A11: Zapatos De Vestir Leon Hombre Negro Piel Napa 0050b | B11: 0050B | C11: HOMBRE | D11: ZAPATOS DE VESTIR | E11: 25-29 | Y11: 0 | Z11: 0 | AE11: 0 | AH11: 735 | AI11: 808.5 | AJ11: 698.25 | AK11: 661.5 | AL11: 624.75 | AM11: 588 | AN11: 551.25
A12: ZAPATILLA VESTIR LEON MUJER MAQUILLAJE BEIGE CHAROL 01 | B12: 01 | C12: MUJER | D12: ZAPATILLAS DE VESTIR Y FIESTA | E12: 23-27 | Y12: 0 | Z12: 0 | AE12: 0 | AH12: 685 | AI12: 753.5 | AJ12: 650.75 | AK12: 616.5 | AL12: 582.25 | AM12: 548 | AN12: 513.75
A13: ZAPATILLA VESTIR LEON MUJER NEGRO CHAROL 01 | B13: 01 | C13: MUJER | D13: ZAPATILLAS DE VESTIR Y FIESTA | E13: 23-27 | Y13: 0 | Z13: 0 | AE13: 0 | AH13: 685 | AI13: 753.5 | AJ13: 650.75 | AK13: 616.5 | AL13: 582.25 | AM13: 548 | AN13: 513.75
A14: ZAPATO DE VESTIR PAZSTOR HOMBRE NEGRO TERNERA 0100 | B14: 0100 | C14: HOMBRE | D14: ZAPATOS DE VESTIR | E14: 25-29 | Y14: 0 | Z14: 0 | AE14: 0 | AH14: 1099 | AI14: 1208.9 | AJ14: 1044.05 | AK14: 989.1 | AL14: 934.15 | AM14: 879.2 | AN14: 824.25
A15: BOTIN CASUAL LEON MUJER LATTE SINTETICO 0103CA | B15: 0103ca | C15: MUJER | D15: BOTIN CASUAL | E15: 22-26 | Y15: 0 | Z15: 0 | AE15: 0 | AH15: 629 | AI15: 691.9 | AJ15: 597.55 | AK15: 566.1 | AL15: 534.65 | AM15: 503.2 | AN15: 471.75
A16: BOTIN CASUAL LEON MUJER NEGRO SINTETICO 0103CA | B16: 0103ca | C16: MUJER | D16: BOTIN CASUAL | E16: 22-26 | Y16: 0 | Z16: 0 | AE16: 0 | AH16: 629 | AI16: 691.9 | AJ16: 597.55 | AK16: 566.1 | AL16: 534.65 | AM16: 503.2 | AN16: 471.75
A17: BOTIN CASUAL LEON NIÑA LATTE LATTE SINTETICO 0103CA | B17: 0103ca | C17: NIÑA | D17: BOTAS | E17: 18-21 | Y17: 0 | Z17: 0 | AE17: 0 | AH17: 529 | AI17: 581.9 | AJ17: 502.55 | AK17: 476.1 | AL17: 449.65 | AM17: 423.2 | AN17: 396.75
A18: BOTIN CASUAL LEON NIÑA NEGRO SINTETICO 0103CA | B18: 0103ca | C18: NIÑA | D18: BOTAS | E18: 18-21 | Y18: 0 | Z18: 0 | AE18: 0 | AH18: 529 | AI18: 581.9 | AJ18: 502.55 | AK18: 476.1 | AL18: 449.65 | AM18: 423.2 | AN18: 396.75
A19: ZAPATO DE VESTIR CASUAL PAZSTOR HOMBRE CABALLERO TERNERA NEGRO 0112 | B19: 0112 | C19: HOMBRE | D19: ZAPATOS DE VESTIR | E19: 24-29 | Y19: 0 | Z19: 0 | AE19: 0 | AH19: 1099 | AI19: 1208.9 | AJ19: 1044.05 | AK19: 989.1 | AL19: 934.15 | AM19: 879.2 | AN19: 824.25
A20: ZAPATO DE VESTIR CASUAL PAZSTOR HOMBRE CABALLERO EXPRESSO CAFE 0112 | B20: 0112 | C20: HOMBRE | D20: ZAPATOS DE VESTIR | E20: 25-29 | Y20: 0 | Z20: 0 | AE20: 0 | AH20: 1099 | AI20: 1208.9 | AJ20: 1044.05 | AK20: 989.1 | AL20: 934.15 | AM20: 879.2 | AN20: 824.25
A21: TENIS VELCRO LEON NIÑA ROSA PIEL 0013 | B21: 013 | C21: NIÑA | D21: TENIS | E21: .15-17 | Y21: 0 | Z21: 0 | AE21: 0 | AH21: 349 | AI21: 383.9 | AJ21: 331.55 | AK21: 314.1 | AL21: 296.65 | AM21: 279.2 | AN21: 261.75
A22: TENIS CASUALES LEON NIÑA DAMA MUJER PLATA LASER POLIPIEL 015 | B22: 015 | C22: NIÑA | D22: TENIS | E22: 15-21 | Y22: 0 | Z22: 0 | AE22: 0 | AH22: 339 | AI22: 372.9 | AJ22: 322.05 | AK22: 305.1 | AL22: 288.15 | AM22: 271.2 | AN22: 254.25
A23: TENIS CASUALES LEON NIÑA DAMA BLANCO MUJER PIEL CABRA 017 | B23: 017 | C23: MUJER | D23: TENIS | E23: 22-26 | Y23: 0 | Z23: 0 | AE23: 0 | AH23: 389 | AI23: 427.9 | AJ23: 369.55 | AK23: 350.1 | AL23: 330.65 | AM23: 311.2 | AN23: 291.75
A24: TENIS CASUALES LEON NIÑA DAMA BLANCO MUJER POLIPIEL CABRA 017 | B24: 017 | C24: NIÑA | D24: TENIS | E24: 15-21 | Y24: 0 | Z24: 0 | AE24: 0 | AH24: 339 | AI24: 372.9 | AJ24: 322.05 | AK24: 305.1 | AL24: 288.15 | AM24: 271.2 | AN24: 254.25
A25: sandalia de piso plataforma leon mujer honey gamuza 017d805 | B25: 017d805 | C25: MUJER | D25: SANDALIAS | E25: 23-27 | Y25: 0 | Z25: 0 | AE25: 0 | AH25: 439 | AI25: 482.9 | AJ25: 417.05 | AK25: 395.1 | AL25: 373.15 | AM25: 351.2 | AN25: 329.25
A26: sandalia de piso plataforma leon mujer negro gamuza 017d810 | B26: 017d810 | C26: MUJER | D26: SANDALIAS | E26: 23-27 | Y26: 0 | Z26: 0 | AE26: 0 | AH26: 439 | AI26: 482.9 | AJ26: 417.05 | AK26: 395.1 | AL26: 373.15 | AM26: 351.2 | AN26: 329.25
A27: FLATS BALERINAS CASUAL VESTIR LEON MUJER DAMA CHAROL MAQUILLAJE 02 | B27: 02 | C27: MUJER | D27: FLATS | E27: 23-26 | Y27: 0 | Z27: 0 | AE27: 0 | AH27: 295 | AI27: 324.5 | AJ27: 280.25 | AK27: 265.5 | AL27: 250.75 | AM27: 236 | AN27: 221.25
A28: SANDALIA DE PISO LEON MUJER BLANCO SINTETICO 020 | B28: 020 | C28: MUJER | D28: SANDALIAS | E28: 23-27 | Y28: 0 | Z28: 0 | AE28: 0 | AH28: 225 | AI28: 247.5 | AJ28: 213.75 | AK28: 202.5 | AL28: 191.25 | AM28: 180 | AN28: 168.75
A29: SANDALIA DE PISO LEON MUJER NEGRO SINTETICO 020 | B29: 020 | C29: MUJER | D29: SANDALIAS | E29: 23-27 | Y29: 0 | Z29: 0 | AE29: 0 | AH29: 225 | AI29: 247.5 | AJ29: 213.75 | AK29: 202.5 | AL29: 191.25 | AM29: 180 | AN29: 168.75
A30: ZAPATOS CASUAL VESTIR KINDER UNISEX BLANCO PIEL TERNERA 0204 | B30: 0204 | C30: NIÑA | D30: ZAPATOS | E30: 15-17 | Y30: 0 | Z30: 0 | AE30: 0 | AH30: 585 | AI30: 643.5 | AJ30: 555.75 | AK30: 526.5 | AL30: 497.25 | AM30: 468 | AN30: 438.75
A31: TENIS CASUALES LEON NIÑA DAMA MUJER PLATA LASER PIEL NAPA 021 | B31: 021 | C31: MUJER | D31: TENIS | E31: 22-26 | Y31: 0 | Z31: 0 | AE31: 0 | AH31: 389 | AI31: 427.9 | AJ31: 369.55 | AK31: 350.1 | AL31: 330.65 | AM31: 311.2 | AN31: 291.75
A32: TENIS CASUALES LEON NIÑA DAMA MUJER PLATA LASER POLIPIEL NAPA 021 | B32: 021 | C32: NIÑA | D32: TENIS | E32: 15-21 | Y32: 0 | Z32: 0 | AE32: 0 | AH32: 339 | AI32: 372.9 | AJ32: 322.05 | AK32: 305.1 | AL32: 288.15 | AM32: 271.2 | AN32: 254.25
A33: SANDALIA DE PLATAFORMA PISO LEON MUJER CAMEL SINTETICO 024 | B33: 024 | C33: MUJER | D33: SANDALIAS | E33: 23-27 | Y33: 0 | Z33: 0 | AE33: 0 | AH33: 375 | AI33: 412.5 | AJ33: 356.25 | AK33: 337.5 | AL33: 318.75 | AM33: 300 | AN33: 281.25
A34: SANDALIA DE PLATAFORMA PISO LEON MUJER NEGRO SINTETICO 024 | B34: 024 | C34: MUJER | D34: SANDALIAS | E34: 23-27 | Y34: 0 | Z34: 0 | AE34: 0 | AH34: 375 | AI34: 412.5 | AJ34: 356.25 | AK34: 337.5 | AL34: 318.75 | AM34: 300 | AN34: 281.25
A35: SANDALIA DE PLATAFORMA PISO LEON MUJER MARINO SINTETICO 024 | B35: 024 | C35: MUJER | D35: SANDALIAS | E35: 23-27 | Y35: 0 | Z35: 0 | AE35: 0 | AH35: 375 | AI35: 412.5 | AJ35: 356.25 | AK35: 337.5 | AL35: 318.75 | AM35: 300 | AN35: 281.25
A36: SANDALIA DE PISO LEON MUJER NEGRO SINTETICO 026 | B36: 026 | C36: MUJER | D36: SANDALIAS | E36: 23-27 | Y36: 0 | Z36: 0 | AE36: 0 | AH36: 259 | AI36: 284.9 | AJ36: 246.05 | AK36: 233.1 | AL36: 220.15 | AM36: 207.2 | AN36: 194.25
A37: SANDALIA DE PISO LEON MUJER ROJO SINTETICO 026 | B37: 026 | C37: MUJER | D37: SANDALIAS | E37: 23-27 | Y37: 0 | Z37: 0 | AE37: 0 | AH37: 259 | AI37: 284.9 | AJ37: 246.05 | AK37: 233.1 | AL37: 220.15 | AM37: 207.2 | AN37: 194.25
A38: SANDALIA DE PISO LEON MUJER CAFE SINTETICO 026 | B38: 026 | C38: MUJER | D38: SANDALIAS | E38: 23-27 | Y38: 0 | Z38: 0 | AA38: =AA37 ->  | AE38: 0 | AH38: 259 | AI38: 284.9 | AJ38: 246.05 | AK38: 233.1 | AL38: 220.15 | AM38: 207.2 | AN38: 194.25
A39: TENIS CASUAL LEON MUJER NEGRO SINTETICO 0270C | B39: 0270c02 | C39: MUJER | D39: TENIS | E39: 23-27 | Y39: 0 | Z39: 0 | AE39: 0 | AH39: 739 | AI39: 812.9 | AJ39: 702.05 | AK39: 665.1 | AL39: 628.15 | AM39: 591.2 | AN39: 554.25
A40: Tenis casual Leon mujer blanco sintetico 0270c02 | B40: 0270c02 | C40: MUJER | D40: TENIS | E40: 23-27 | Y40: 0 | Z40: 0 | AE40: 0 | AH40: 739 | AI40: 812.9 | AJ40: 702.05 | AK40: 665.1 | AL40: 628.15 | AM40: 591.2 | AN40: 554.25
A41: SANDALIA DE PISO LEON MUJER BLANCO SINTETICO 02 | B41: 02SAN | C41: MUJER | D41: SANDALIAS | E41: 23-27 | Y41: 0 | Z41: 0 | AE41: 0 | AH41: 299 | AI41: 328.9 | AJ41: 284.05 | AK41: 269.1 | AL41: 254.15 | AM41: 239.2 | AN41: 224.25
A42: SANDALIA DE PISO LEON MUJER MAQUILLAJE SINTETICO 02 | B42: 02SAN | C42: MUJER | D42: SANDALIAS | E42: 23-27 | Y42: 0 | Z42: 0 | AE42: 0 | AH42: 299 | AI42: 328.9 | AJ42: 284.05 | AK42: 269.1 | AL42: 254.15 | AM42: 239.2 | AN42: 224.25
A43: FLATS BALERINA CASUAL VESTIR LEON MUJER DAMA NEGRO GAMUZA 03 | B43: 03 | C43: MUJER | D43: FLATS | E43: 23-26 | Y43: 0 | Z43: 0 | AE43: 0 | AH43: 295 | AI43: 324.5 | AJ43: 280.25 | AK43: 265.5 | AL43: 250.75 | AM43: 236 | AN43: 221.25
A44: TENIS CASUAL LEON NIÑA BLANCO SINTETICO 030 | B44: 030 | C44: NIÑA | D44: TENIS | E44: 15-21 | Y44: 0 | Z44: 0 | AE44: 0 | AH44: 475 | AI44: 522.5 | AJ44: 451.25 | AK44: 427.5 | AL44: 403.75 | AM44: 380 | AN44: 356.25
A45: TENIS CASUAL LEON NIÑA ORO SINTETICO 030 | B45: 030 | C45: NIÑA | D45: TENIS | E45: 15-21 | Y45: 0 | Z45: 0 | AE45: 0 | AH45: 475 | AI45: 522.5 | AJ45: 451.25 | AK45: 427.5 | AL45: 403.75 | AM45: 380 | AN45: 356.25
A46: TENIS CASUAL LEON NIÑA PLATA SINTETICO 030 | B46: 030 | C46: NIÑA | D46: TENIS | E46: 15-21 | Y46: 0 | Z46: 0 | AE46: 0 | AH46: 475 | AI46: 522.5 | AJ46: 451.25 | AK46: 427.5 | AL46: 403.75 | AM46: 380 | AN46: 356.25
A47: TENIS CASUALES LEON MUJER NEGRO GAMUZA 031 | B47: 031 | C47: MUJER | D47: TENIS | E47: 22-26 | Y47: 0 | Z47: 0 | AE47: 0 | AH47: 359 | AI47: 394.9 | AJ47: 341.05 | AK47: 323.1 | AL47: 305.15 | AM47: 287.2 | AN47: 269.25
A48: TENIS CASUALES LEON MUJER GRIS GAMUZA 031 | B48: 031 | C48: MUJER | D48: TENIS | E48: 22-26 | Y48: 0 | Z48: 0 | AE48: 0 | AH48: 359 | AI48: 394.9 | AJ48: 341.05 | AK48: 323.1 | AL48: 305.15 | AM48: 287.2 | AN48: 269.25
A49: TENIS CASUALES LEON NIÑA NEGRO GAMUZA 031 | B49: 031 | C49: NIÑA | D49: TENIS | E49: 18-21 | Y49: 0 | Z49: 0 | AE49: 0 | AH49: 339 | AI49: 372.9 | AJ49: 322.05 | AK49: 305.1 | AL49: 288.15 | AM49: 271.2 | AN49: 254.25
A50: TENIS CASUALES LEON NIÑA GRIS GAMUZA 031 | B50: 031 | C50: NIÑA | D50: TENIS | E50: 18-21 | Y50: 0 | Z50: 0 | AE50: 0 | AH50: 339 | AI50: 372.9 | AJ50: 322.05 | AK50: 305.1 | AL50: 288.15 | AM50: 271.2 | AN50: 254.25
A51: VESTIR Y FIESTA DAMA LEON PIKE PLATA 031860 | B51: 031860 | C51: MUJER | D51: ZAPATILLAS DE VESTIR Y FIESTA | E51: 23-27 | Y51: 0 | Z51: 0 | AE51: 0 | AH51: 639 | AI51: 702.9 | AJ51: 607.05 | AK51: 575.1 | AL51: 543.15 | AM51: 511.2 | AN51: 479.25
A52: BOTA INDUSTRIAL CLIFF HOMBRE CAOBA FLOTER 0338 | B52: 0338 | C52: HOMBRE | D52: BOTAS DE TRABAJO | E52: 25-29 | Y52: 0 | Z52: 0 | AE52: 0 | AH52: 939 | AI52: 1032.9 | AJ52: 892.05 | AK52: 845.1 | AL52: 798.15 | AM52: 751.2 | AN52: 704.25
A53: BOTA INDUSTRIAL CLIFF HOMBRE NEGRO FLOTER 0338 | B53: 0338 | C53: HOMBRE | D53: BOTAS DE TRABAJO | E53: 25-29 | Y53: 0 | Z53: 0 | AE53: 0 | AH53: 939 | AI53: 1032.9 | AJ53: 892.05 | AK53: 845.1 | AL53: 798.15 | AM53: 751.2 | AN53: 704.25
A54: BOTA INDUSTRIAL CLIFF HOMBRE ARENA GAMUZA 0349 | B54: 0349 | C54: HOMBRE | D54: BOTAS DE TRABAJO | E54: 25-29 | Y54: 0 | Z54: 0 | AE54: 0 | AH54: 1075 | AI54: 1182.5 | AJ54: 1021.25 | AK54: 967.5 | AL54: 913.75 | AM54: 860 | AN54: 806.25
A55: TENIS CASUALES GOSH BLANCO PLATA MUJER DAMA TACTO PIEL 0349Q07 | B55: 0349Q07 | C55: MUJER | D55: TENIS | E55: 23-26 | Y55: 0 | Z55: 0 | AE55: 0 | AH55: 435 | AI55: 478.5 | AJ55: 413.25 | AK55: 391.5 | AL55: 369.75 | AM55: 348 | AN55: 326.25
A56: TENIS SPORT GOSH DAMA MUJER NEGRO TEXTIL 034AJ03 | B56: 034AJ03 | C56: MUJER | D56: TENIS | E56: 23-26 | Y56: 0 | Z56: 0 | AE56: 0 | AH56: 399 | AI56: 438.9 | AJ56: 379.05 | AK56: 359.1 | AL56: 339.15 | AM56: 319.2 | AN56: 299.25
A57: TENIS DE PLATAFORMA LEON MUJER ROSA SINTETICO 034E901 | B57: 034E901 | C57: MUJER | D57: TENIS | E57: 23-27 | Y57: 0 | Z57: 0 | AA57: =AA56 ->  | AE57: 0 | AH57: 685 | AI57: 753.5 | AJ57: 650.75 | AK57: 616.5 | AL57: 582.25 | AM57: 548 | AN57: 513.75
A58: TENIS CASUALES CON PLATAFORMA GOSH MUJER DAMA PLATA TEXTIL 034KS01 | B58: 034ks01 | C58: MUJER | D58: TENIS | E58: 23-26 | Y58: 0 | Z58: 0 | AE58: 0 | AH58: 479 | AI58: 526.9 | AJ58: 455.05 | AK58: 431.1 | AL58: 407.15 | AM58: 383.2 | AN58: 359.25
A59: TENIS CASUALES GOSH DAMA MUJER POLIPIEL BLANCO 034LE01 | B59: 034LE01 | C59: MUJER | D59: TENIS | E59: 23-27 | Y59: 0 | Z59: 0 | AE59: 0 | AH59: 499 | AI59: 548.9 | AJ59: 474.05 | AK59: 449.1 | AL59: 424.15 | AM59: 399.2 | AN59: 374.25
A60: TENIS CASUALES GOSH MUJER NEGRO SINTETICO 034LE05 | B60: 034LE05 | C60: MUJER | D60: TENIS | E60: 23-27 | Y60: 0 | Z60: 0 | AE60: 0 | AH60: 499 | AI60: 548.9 | AJ60: 474.05 | AK60: 449.1 | AL60: 424.15 | AM60: 399.2 | AN60: 374.25
A61: TENIS CASUALES GOSH DAMA MUJER POLIPIEL ROSA 034MK03 | B61: 034MK03 | C61: MUJER | D61: TENIS | E61: 23-27 | Y61: 0 | Z61: 0 | AE61: 0 | AH61: 395 | AI61: 434.5 | AJ61: 375.25 | AK61: 355.5 | AL61: 335.75 | AM61: 316 | AN61: 296.25
A62: TENIS CASUAL GOSH MUJER BLANCO SINTETICO 034MM01 | B62: 034MM01 | C62: MUJER | D62: TENIS | E62: 23-27 | Y62: 0 | Z62: 0 | AE62: 0 | AH62: 525 | AI62: 577.5 | AJ62: 498.75 | AK62: 472.5 | AL62: 446.25 | AM62: 420 | AN62: 393.75
A63: TENIS CASUAL GOSH MUJER BLANCO SINTETICO 034RK03 | B63: 034RK03 | C63: MUJER | D63: TENIS | E63: 23-27 | Y63: 0 | Z63: 0 | AE63: 0 | AH63: 555 | AI63: 610.5 | AJ63: 527.25 | AK63: 499.5 | AL63: 471.75 | AM63: 444 | AN63: 416.25
A64: TENIS CASUAL GOSH MUJER BLANCO SINTETICO 034RO03 | B64: 034RO03 | C64: MUJER | D64: TENIS | E64: 23-27 | Y64: 0 | Z64: 0 | AA64: =AA63 ->  | AE64: 0 | AH64: 525 | AI64: 577.5 | AJ64: 498.75 | AK64: 472.5 | AL64: 446.25 | AM64: 420 | AN64: 393.75
A65: TENIS CASUAL GOSH MUJER BLANCO SINTETICO 034RS02 | B65: 034RS02 | C65: MUJER | D65: TENIS | E65: 23-27 | Y65: 0 | Z65: 0 | AE65: 0 | AH65: 635 | AI65: 698.5 | AJ65: 603.25 | AK65: 571.5 | AL65: 539.75 | AM65: 508 | AN65: 476.25
A66: TENIS CASUAL GOSH MUJER AVENA ROSA SINTETICO 034RS03 | B66: 034rs03 | C66: MUJER | D66: TENIS | E66: 23-27 | Y66: 0 | Z66: 0 | AE66: 0 | AH66: 635 | AI66: 698.5 | AJ66: 603.25 | AK66: 571.5 | AL66: 539.75 | AM66: 508 | AN66: 476.25
A67: TENIS CASUAL GOSH MUJER BLANCO SINTETICO 034RW01 | B67: 034RW01 | C67: MUJER | D67: TENIS | E67: 23-27 | Y67: 0 | Z67: 0 | AE67: 0 | AH67: 555 | AI67: 610.5 | AJ67: 527.25 | AK67: 499.5 | AL67: 471.75 | AM67: 444 | AN67: 416.25
A68: TENIS CASUAL LEON MUJER BLANCO SINTETICO 034SE01 | B68: 034SE01 | C68: MUJER | D68: TENIS | E68: 23-27 | Y68: 0 | Z68: 0 | AE68: 0 | AH68: 525 | AI68: 577.5 | AJ68: 498.75 | AK68: 472.5 | AL68: 446.25 | AM68: 420 | AN68: 393.75
A69: TENIS CASUAL LEON MUJER MULTICOLOR SINTETICO 034SH01 | B69: 034SH01 | C69: MUJER | D69: TENIS | E69: 23-27 | Y69: =SUM(F69:X69) -> 0 | Z69: =AH69*Y69 -> 0 | AB69: =Z69*AA69 ->  | AC69: =Z69-AB69 ->  | AE69: =Z69*1.1 -> 0 | AF69: =AE69-AC69 ->  | AG69: =(AE69/AC69)-1 ->  | AH69: 579 | AI69: =AH69*1.1 -> 636.9 | AJ69: =AH69*0.95 -> 550.05 | AK69: =AH69*0.9 -> 521.1 | AL69: =AH69*0.85 -> 492.15 | AM69: =AH69*0.8 -> 463.2 | AN69: =AH69*0.75 -> 434.25
A70: Tenis casual Leon mujer blanco sintetico 034t502 | B70: 034T502 | C70: MUJER | D70: TENIS | E70: 23-27 | Y70: 0 | Z70: 0 | AE70: 0 | AH70: 555 | AI70: 610.5 | AJ70: 527.25 | AK70: 499.5 | AL70: 471.75 | AM70: 444 | AN70: 416.25
A71: Tenis casual Leon mujer blanco sintetico 034t801 | B71: 034t801 | C71: MUJER | D71: TENIS | E71: 23-27 | Y71: 0 | Z71: 0 | AE71: 0 | AH71: 635 | AI71: 698.5 | AJ71: 603.25 | AK71: 571.5 | AL71: 539.75 | AM71: 508 | AN71: 476.25
A72: Tenis casual Leon mujer negro sintetico 034tz02 | B72: 034tz02 | C72: MUJER | D72: TENIS | E72: 23-27 | Y72: 0 | Z72: 0 | AE72: 0 | AH72: 765 | AI72: 841.5 | AJ72: 726.75 | AK72: 688.5 | AL72: 650.25 | AM72: 612 | AN72: 573.75
A73: TENIS CASUAL LEON MUJER BLANCO SINTETICO 034u801 | B73: 034u801 | C73: MUJER | D73: TENIS | E73: 23-27 | Y73: 0 | Z73: 0 | AE73: 0 | AH73: 599 | AI73: 658.9 | AJ73: 569.05 | AK73: 539.1 | AL73: 509.15 | AM73: 479.2 | AN73: 449.25
A74: TENIS CASUAL LEON MUJER NEGRO SINTETICO 034u805 | B74: 034u805 | C74: MUJER | D74: TENIS | E74: 23-27 | Y74: 0 | Z74: 0 | AE74: 0 | AH74: 599 | AI74: 658.9 | AJ74: 569.05 | AK74: 539.1 | AL74: 509.15 | AM74: 479.2 | AN74: 449.25
A75: BOTA INDUSTRIAL CASUAL LEON HOMBRE CABALLERO NEGRO CON ROJO STRONG 0358 | B75: 0358 | C75: HOMBRE | D75: BOTAS DE TRABAJO | E75: 23-26 | Y75: 0 | Z75: 0 | AE75: 0 | AH75: 945 | AI75: 1039.5 | AJ75: 897.75 | AK75: 850.5 | AL75: 803.25 | AM75: 756 | AN75: 708.75
A76: BOTA INDUSTRIAL CLIFF HOMBRE OXFORD GAMUZA 0382 | B76: 0382 | C76: HOMBRE | D76: BOTAS DE TRABAJO | E76: 25-29 | Y76: 0 | Z76: 0 | AE76: 0 | AH76: 969 | AI76: 1065.9 | AJ76: 920.55 | AK76: 872.1 | AL76: 823.65 | AM76: 775.2 | AN76: 726.75
A77: BOTAS INDUSTRIALES LEON HOMBRE CABALLERO NEGRO POLIPIEL STRONG 0384 | B77: 0384 | C77: HOMBRE | D77: BOTAS DE TRABAJO | E77: 25-29 | Y77: 0 | Z77: 0 | AE77: 0 | AH77: 875 | AI77: 962.5 | AJ77: 831.25 | AK77: 787.5 | AL77: 743.75 | AM77: 700 | AN77: 656.25
A78: MOCASIN CASUAL LEON MUJER NEGRO SINTETICO 040 | B78: 040 | C78: MUJER | D78: MOCASINES | E78: 23-27 | Y78: 0 | Z78: 0 | AE78: 0 | AH78: 459 | AI78: 504.9 | AJ78: 436.05 | AK78: 413.1 | AL78: 390.15 | AM78: 367.2 | AN78: 344.25
A79: MOCASIN CASUAL LEON MUJER VINO SINTETICO 040 | B79: 040 | C79: MUJER | D79: MOCASINES | E79: 23-27 | Y79: 0 | Z79: 0 | AE79: 0 | AH79: 459 | AI79: 504.9 | AJ79: 436.05 | AK79: 413.1 | AL79: 390.15 | AM79: 367.2 | AN79: 344.25
A80: BOTA INDUSTRIAL CLIFF MUJER NEGRO ROJO TEXTIL 0438 | B80: 0438 | C80: MUJER | D80: BOTAS DE TRABAJO | E80: 23-26 | Y80: 0 | Z80: 0 | AE80: 0 | AH80: 855 | AI80: 940.5 | AJ80: 812.25 | AK80: 769.5 | AL80: 726.75 | AM80: 684 | AN80: 641.25
A81: Bota Industrial CLIFF MUJER Nobuck OXFORD 0439 | B81: 0439 | C81: MUJER | D81: BOTAS DE TRABAJO | E81: 23-27 | Y81: 0 | Z81: 0 | AE81: 0 | AH81: 979 | AI81: 1076.9 | AJ81: 930.05 | AK81: 881.1 | AL81: 832.15 | AM81: 783.2 | AN81: 734.25
A82: Bota Industrial CLIFF MUJER Nobuck UVA 0439 | B82: 0439 | C82: MUJER | D82: BOTAS DE TRABAJO | E82: 23-27 | Y82: 0 | Z82: 0 | AE82: 0 | AH82: 979 | AI82: 1076.9 | AJ82: 930.05 | AK82: 881.1 | AL82: 832.15 | AM82: 783.2 | AN82: 734.25
A83: FLATS BALERINAS LEON DAMA MUJER AZUL MARINO TEXTIL 046 | B83: 046 | C83: MUJER | D83: FLATS | E83: 23-26 | Y83: 0 | Z83: 0 | AE83: 0 | AH83: 589 | AI83: 647.9 | AJ83: 559.55 | AK83: 530.1 | AL83: 500.65 | AM83: 471.2 | AN83: 441.75
A84: BOTA INDUSTRIAL CLIFF MUJER MAPLE NOBUCK 0466 | B84: 0466 | C84: MUJER | D84: BOTAS DE TRABAJO | E84: 23-27 | Y84: 0 | Z84: 0 | AE84: 0 | AH84: 959 | AI84: 1054.9 | AJ84: 911.05 | AK84: 863.1 | AL84: 815.15 | AM84: 767.2 | AN84: 719.25
A85: BOTA INDUSTRIAL CLIFF MUJER NEGRO PIEL 0466 | B85: 0466 | C85: MUJER | D85: BOTAS DE TRABAJO | E85: 23-27 | Y85: 0 | Z85: 0 | AE85: 0 | AH85: 959 | AI85: 1054.9 | AJ85: 911.05 | AK85: 863.1 | AL85: 815.15 | AM85: 767.2 | AN85: 719.25
A86: SANDALIAS TACONES VESTIR LEON DAMA MUJER GRIS GLITTER 048 | B86: 048 | C86: MUJER | D86: SANDALIAS DE VESTIR Y FIESTA | E86: 23-26 | Y86: 0 | Z86: 0 | AE86: 0 | AH86: 635 | AI86: 698.5 | AJ86: 603.25 | AK86: 571.5 | AL86: 539.75 | AM86: 508 | AN86: 476.25
A87: SANDALIAS TACONES VESTIR LEON DAMA MUJER ORO GLITTER 048 | B87: 048 | C87: MUJER | D87: SANDALIAS DE VESTIR Y FIESTA | E87: 23-26 | Y87: 0 | Z87: 0 | AE87: 0 | AH87: 635 | AI87: 698.5 | AJ87: 603.25 | AK87: 571.5 | AL87: 539.75 | AM87: 508 | AN87: 476.25
A88: ZAPATO DE VESTIR LEON HOMBRE CAFE EURONAPA 050B | B88: 050B | C88: HOMBRE | D88: ZAPATOS DE VESTIR | E88: 25-29 | Y88: 0 | Z88: 0 | AE88: 0 | AH88: 1025 | AI88: 1127.5 | AJ88: 973.75 | AK88: 922.5 | AL88: 871.25 | AM88: 820 | AN88: 768.75
A89: SANDALIAS TACONES VESTIR LEON MUJER ROJO GAMUZA 051 | B89: 051 | C89: MUJER | D89: SANDALIAS DE VESTIR Y FIESTA | E89: 23-26 | Y89: 0 | Z89: 0 | AE89: 0 | AH89: 635 | AI89: 698.5 | AJ89: 603.25 | AK89: 571.5 | AL89: 539.75 | AM89: 508 | AN89: 476.25
A90: SANDALIAS TACONES VESTIR LEON MUJER AZUL MARINO GAMUZA 051 | B90: 051 | C90: MUJER | D90: SANDALIAS DE VESTIR Y FIESTA | E90: 23-26 | Y90: 0 | Z90: 0 | AE90: 0 | AH90: 635 | AI90: 698.5 | AJ90: 603.25 | AK90: 571.5 | AL90: 539.75 | AM90: 508 | AN90: 476.25
A91: SANDALIAS TACONES VESTIR LEON DAMA MUJER NEGRO CHAROL 052 | B91: 052 | C91: MUJER | D91: SANDALIAS DE VESTIR Y FIESTA | E91: 23-26 | Y91: 0 | Z91: 0 | AE91: 0 | AH91: 635 | AI91: 698.5 | AJ91: 603.25 | AK91: 571.5 | AL91: 539.75 | AM91: 508 | AN91: 476.25
A92: SANDALIAS CASUALES KINDER MUJER BLANCO PIEL TERNERA 06015 | B92: 06015m | C92: MUJER | D92: SANDALIAS | E92: 22-26 | Y92: 0 | Z92: 0 | AE92: 0 | AH92: 600 | AI92: 660 | AJ92: 570 | AK92: 540 | AL92: 510 | AM92: 480 | AN92: 450
A93: ZAPATOS DE VESTIR LEON HOMBRE NEGRO PIEL 062B | B93: 062B | C93: HOMBRE | D93: ZAPATOS DE VESTIR | E93: 25-29 | Y93: 0 | Z93: 0 | AE93: 0 | AH93: 1145 | AI93: 1259.5 | AJ93: 1087.75 | AK93: 1030.5 | AL93: 973.25 | AM93: 916 | AN93: 858.75
A94: Sandalias de piso Casuales Leon Mujer Vetro 065 | B94: 065 | C94: MUJER | D94: SANDALIAS | E94: 23-27 | Y94: 0 | Z94: 0 | AE94: 0 | AH94: 480 | AI94: 528 | AJ94: 456 | AK94: 432 | AL94: 408 | AM94: 384 | AN94: 360
A95: Sandalias de piso Casuales Leon Mujer Vetro 065 | B95: 065 | C95: MUJER | D95: SANDALIAS | E95: 23-27 | Y95: 0 | Z95: 0 | AE95: 0 | AH95: 480 | AI95: 528 | AJ95: 456 | AK95: 432 | AL95: 408 | AM95: 384 | AN95: 360
A96: Sandalias de piso Casuales Leon Mujer Vetro 065 | B96: 065 | C96: MUJER | D96: SANDALIAS | E96: 23-27 | Y96: 0 | Z96: 0 | AA96: =AA95 ->  | AE96: 0 | AH96: 480 | AI96: 528 | AJ96: 456 | AK96: 432 | AL96: 408 | AM96: 384 | AN96: 360
A97: TENIS CASUALES GOSH DAMA MUJER AZUL MARINO SINTETICO 065BF01 | B97: 065BF01 | C97: MUJER | D97: TENIS | E97: 23-26 | Y97: 0 | Z97: 0 | AE97: 0 | AH97: 545 | AI97: 599.5 | AJ97: 517.75 | AK97: 490.5 | AL97: 463.25 | AM97: 436 | AN97: 408.75
A98: TENIS SPORT CASUAL GOSH MUJER DAMA NEGRO TEXTIL 065F202 | B98: 065F202 | C98: MUJER | D98: TENIS | E98: 23-27 | Y98: 0 | Z98: 0 | AE98: 0 | AH98: 439 | AI98: 482.9 | AJ98: 417.05 | AK98: 395.1 | AL98: 373.15 | AM98: 351.2 | AN98: 329.25
A99: TENIS CASUAL LEON NIÑA GRIS TEXTIL 066 | B99: 066 | C99: NIÑA | D99: TENIS | E99: 15-21 | Y99: 0 | Z99: 0 | AE99: 0 | AH99: 399 | AI99: 438.9 | AJ99: 379.05 | AK99: 359.1 | AL99: 339.15 | AM99: 319.2 | AN99: 299.25
A100: ZAPATO VESTIR CASUAL LEON HOMBRE CABALLERO PIEL NAPA NEGRO 0660 | B100: 0660 | C100: HOMBRE | D100: ZAPATOS DE VESTIR | E100: 25-29 | Y100: 0 | Z100: 0 | AE100: 0 | AH100: 1109 | AI100: 1219.9 | AJ100: 1053.55 | AK100: 998.1 | AL100: 942.65 | AM100: 887.2 | AN100: 831.75
A101: ZAPATOS DE VESTIR LEON HOMBRE NEGRO PIEL 068B | B101: 068B | C101: HOMBRE | D101: ZAPATOS DE VESTIR | E101: 25-29 | Y101: 0 | Z101: 0 | AE101: 0 | AH101: 1145 | AI101: 1259.5 | AJ101: 1087.75 | AK101: 1030.5 | AL101: 973.25 | AM101: 916 | AN101: 858.75
A102: TENIS CASUAL LEON NIÑO PIEL BLANCO 070 | B102: 070 | C102: NIÑO | D102: TENIS | E102: 15-17 | Y102: 0 | Z102: 0 | AE102: 0 | AH102: 449 | AI102: 493.9 | AJ102: 426.55 | AK102: 404.1 | AL102: 381.65 | AM102: 359.2 | AN102: 336.75
A103: TENIS CASUAL LEON NIÑO PIEL BLANCO 070 | B103: 070 | C103: NIÑO | D103: TENIS | E103: 18-21 | Y103: 0 | Z103: 0 | AE103: 0 | AH103: 469 | AI103: 515.9 | AJ103: 445.55 | AK103: 422.1 | AL103: 398.65 | AM103: 375.2 | AN103: 351.75
A104: TENIS CASUAL LEON NIÑO PIEL BLANCO 070 | B104: 070 | C104: NIÑO | D104: TENIS | E104: 22-25 | Y104: 0 | Z104: 0 | AE104: 0 | AH104: 659 | AI104: 724.9 | AJ104: 626.05 | AK104: 593.1 | AL104: 560.15 | AM104: 527.2 | AN104: 494.25
A105: ZAPATO CASUAL BRESA MUJER BLANCO TEXTIL 070 | B105: 070 | C105: MUJER | D105: CASUAL | E105: 23-27 | Y105: 0 | Z105: 0 | AE105: 0 | AH105: 215 | AI105: 236.5 | AJ105: 204.25 | AK105: 193.5 | AL105: 182.75 | AM105: 172 | AN105: 161.25
A106: ZAPATO CASUAL BRESA MUJER NEGRO TEXTIL 070 | B106: 070 | C106: MUJER | D106: CASUAL | E106: 23-27 | Y106: 0 | Z106: 0 | AE106: 0 | AH106: 215 | AI106: 236.5 | AJ106: 204.25 | AK106: 193.5 | AL106: 182.75 | AM106: 172 | AN106: 161.25
A107: TENIS VELCRO LEON NIÑO MARINO SINTETICO 072 | B107: 072 | C107: NIÑO | D107: TENIS | E107: 15-21 | Y107: 0 | Z107: 0 | AE107: 0 | AH107: 399 | AI107: 438.9 | AJ107: 379.05 | AK107: 359.1 | AL107: 339.15 | AM107: 319.2 | AN107: 299.25
A108: BOTIN CASUAL GOSH MUJER LATTE POLIPIEL 0725Y01 | B108: 0725Y01 | C108: MUJER | D108: BOTIN CASUAL | E108: 23-27 | Y108: 0 | Z108: 0 | AE108: 0 | AH108: 789 | AI108: 867.9 | AJ108: 749.55 | AK108: 710.1 | AL108: 670.65 | AM108: 631.2 | AN108: 591.75
A109: SANDALIAS PLATAFORMA LEON MUJER NEGRO TEXTIL 07610 | B109: 07610 | C109: MUJER | D109: SANDALIAS | E109: 23-27 | Y109: 0 | Z109: 0 | AE109: 0 | AH109: 510 | AI109: 561 | AJ109: 484.5 | AK109: 459 | AL109: 433.5 | AM109: 408 | AN109: 382.5
A110: SANDALIAS PLATAFORMA LEON MUJER ROSA TEXTIL 07610 | B110: 07610 | C110: MUJER | D110: SANDALIAS | E110: 23-27 | Y110: 0 | Z110: 0 | AE110: 0 | AH110: 510 | AI110: 561 | AJ110: 484.5 | AK110: 459 | AL110: 433.5 | AM110: 408 | AN110: 382.5
A111: TENIS CASUALES LEON FLORES PLATA NIÑA POLIPIEL CABRA 08 | B111: 08 | C111: NIÑA | D111: CASUAL | E111: 18-22 | Y111: 0 | Z111: 0 | AE111: 0 | AH111: 400 | AI111: 440 | AJ111: 380 | AK111: 360 | AL111: 340 | AM111: 320 | AN111: 300
A112: ZAPATILLAS DE VESTIR LEON MUJER NEGRO PIEL 08178 | B112: 08178 | C112: MUJER | D112: ZAPATILLAS DE VESTIR Y FIESTA | E112: 23-26 | Y112: 0 | Z112: 0 | AE112: 0 | AH112: 300 | AI112: 330 | AJ112: 285 | AK112: 270 | AL112: 255 | AM112: 240 | AN112: 225
A113: MOCASIN CASUAL LEON MUJER MIEL SINTETICO 090 | B113: 090 | C113: MUJER | D113: MOCASINES | E113: 23-27 | Y113: 0 | Z113: 0 | AA113: =AA112 ->  | AE113: 0 | AH113: 459 | AI113: 504.9 | AJ113: 436.05 | AK113: 413.1 | AL113: 390.15 | AM113: 367.2 | AN113: 344.25
A114: MOCASIN CASUAL LEON MUJER NEGRO SINTETICO 090 | B114: 090 | C114: MUJER | D114: MOCASINES | E114: 23-27 | Y114: 0 | Z114: 0 | AE114: 0 | AH114: 459 | AI114: 504.9 | AJ114: 436.05 | AK114: 413.1 | AL114: 390.15 | AM114: 367.2 | AN114: 344.25
A115: BOTA INDUSTRIAL LEON HOMBRE NEGRO FLOTER 0917 | B115: 0917 | C115: HOMBRE | D115: BOTAS DE TRABAJO | E115: 23-29 | Y115: 0 | Z115: 0 | AE115: 0 | AH115: 909 | AI115: 999.9 | AJ115: 863.55 | AK115: 818.1 | AL115: 772.65 | AM115: 727.2 | AN115: 681.75
A116: ZAPATO DE VESTIR LEON HOMBRE NEGRO PIEL 0B6307 | B116: 0B6307 | C116: HOMBRE | D116: ZAPATOS DE VESTIR | E116: 25-29 | Y116: 0 | Z116: 0 | AE116: 0 | AH116: 1039 | AI116: 1142.9 | AJ116: 987.05 | AK116: 935.1 | AL116: 883.15 | AM116: 831.2 | AN116: 779.25
A117: ZAPATO DE VESTIR LEON HOMBRE NEGRO PIEL 0B6901 | B117: 0B6901 | C117: HOMBRE | D117: ZAPATOS DE VESTIR | E117: 25-29 | Y117: 0 | Z117: 0 | AE117: 0 | AH117: 949 | AI117: 1043.9 | AJ117: 901.55 | AK117: 854.1 | AL117: 806.65 | AM117: 759.2 | AN117: 711.75
A118: ZAPATOS DE VESTIR LEON HOMBRE CAFE PIEL 0B6903 | B118: 0B6903 | C118: HOMBRE | D118: ZAPATOS DE VESTIR | E118: 25-29 | Y118: 0 | Z118: 0 | AA118: =AA117 ->  | AE118: 0 | AH118: 949 | AI118: 1043.9 | AJ118: 901.55 | AK118: 854.1 | AL118: 806.65 | AM118: 759.2 | AN118: 711.75
A119: ZAPATO DE VESTIR LEON HOMBRE NEGRO PIEL 0B7501 | B119: 0B7501 | C119: HOMBRE | D119: ZAPATOS DE VESTIR | E119: 25-29 | Y119: 0 | Z119: 0 | AE119: 0 | AH119: 1025 | AI119: 1127.5 | AJ119: 973.75 | AK119: 922.5 | AL119: 871.25 | AM119: 820 | AN119: 768.75
A120: TENIS CASUALES LEON MUJER BLANCO 0C14W02 | B120: 0c14w02 | C120: MUJER | D120: TENIS | E120: 23-27 | Y120: 0 | Z120: 0 | AE120: 0 | AH120: 579 | AI120: 636.9 | AJ120: 550.05 | AK120: 521.1 | AL120: 492.15 | AM120: 463.2 | AN120: 434.25
A121: ZAPATO DE VESTIR SANTINI HOMBRE MIEL PIEL 0P11502 | B121: 0P11502 | C121: HOMBRE | D121: ZAPATOS DE VESTIR | E121: 25-29 | Y121: 0 | Z121: 0 | AE121: 0 | AH121: 1025 | AI121: 1127.5 | AJ121: 973.75 | AK121: 922.5 | AL121: 871.25 | AM121: 820 | AN121: 768.75
A122: TENIS CASUALES GOSH MUJER DAMA BLANCO CON ORO POLIPIEL 0R73204 | B122: 0R73204 | C122: MUJER | D122: TENIS | E122: 23-26 | Y122: 0 | Z122: 0 | AE122: 0 | AH122: 475 | AI122: 522.5 | AJ122: 451.25 | AK122: 427.5 | AL122: 403.75 | AM122: 380 | AN122: 356.25
A123: TENIS CASUALES GOSH MUJER DAMA BLANCO POLIPIEL CABRA 0R75P01 | B123: 0R75P01 | C123: MUJER | D123: TENIS | E123: 23-26 | Y123: 0 | Z123: 0 | AE123: 0 | AH123: 545 | AI123: 599.5 | AJ123: 517.75 | AK123: 490.5 | AL123: 463.25 | AM123: 436 | AN123: 408.75
A124: TENIS CASUAL LEON MUJER BLANCO SINTETICO 0R77902 | B124: 0R77902 | C124: MUJER | D124: TENIS | E124: 23-27 | Y124: 0 | Z124: 0 | AE124: 0 | AH124: 599 | AI124: 658.9 | AJ124: 569.05 | AK124: 539.1 | AL124: 509.15 | AM124: 479.2 | AN124: 449.25
A125: FLAT BALERINA CASUALES VESTIR LEON MUJER DAMA ORO ROSADO POLIPIEL 1000 | B125: 1000 | C125: MUJER | D125: FLATS | E125: 22-26 | Y125: 0 | Z125: 0 | AE125: 0 | AH125: 219 | AI125: 240.9 | AJ125: 208.05 | AK125: 197.1 | AL125: 186.15 | AM125: 175.2 | AN125: 164.25
A126: FLAT BALERINA CASUALES VESTIR LEON MUJER DAMA ORO CHAROL 1000 | B126: 1000 | C126: MUJER | D126: FLATS | E126: 22-27 | Y126: 0 | Z126: 0 | AE126: 0 | AH126: 219 | AI126: 240.9 | AJ126: 208.05 | AK126: 197.1 | AL126: 186.15 | AM126: 175.2 | AN126: 164.25
A127: FLAT BALERINA CASUALES VESTIR LEON MUJER DAMA NEGRO CHAROL 1000 | B127: 1000 | C127: MUJER | D127: FLATS | E127: 22-27 | Y127: 0 | Z127: 0 | AE127: 0 | AH127: 219 | AI127: 240.9 | AJ127: 208.05 | AK127: 197.1 | AL127: 186.15 | AM127: 175.2 | AN127: 164.25
A128: FLAT BALERINA CASUALES VESTIR LEON MUJER DAMA BEIGE CHAROL 1000 | B128: 1000 | C128: NIÑA | D128: FLATS | E128: 18-21 | Y128: 0 | Z128: 0 | AE128: 0 | AH128: 250 | AI128: 275 | AJ128: 237.5 | AK128: 225 | AL128: 212.5 | AM128: 200 | AN128: 187.5
A129: FLAT BALERINA CASUALES VESTIR LEON MUJER DAMA AZUL MARINO CHAROL 1000 | B129: 1000 | C129: NIÑA | D129: FLATS | E129: 18-21 | Y129: 0 | Z129: 0 | AE129: 0 | AH129: 209 | AI129: 229.9 | AJ129: 198.55 | AK129: 188.1 | AL129: 177.65 | AM129: 167.2 | AN129: 156.75
A130: FLAT BALERINA CASUALES VESTIR LEON MUJER DAMA NEGRO CHAROL 1000 | B130: 1000 | C130: NIÑA | D130: FLATS | E130: 18-21 | Y130: 0 | Z130: 0 | AE130: 0 | AH130: 209 | AI130: 229.9 | AJ130: 198.55 | AK130: 188.1 | AL130: 177.65 | AM130: 167.2 | AN130: 156.75
A131: FLAT BALERINA CASUALES VESTIR LEON MUJER DAMA ORO CHAROL 1000 | B131: 1000 | C131: NIÑA | D131: FLATS | E131: 18-21 | Y131: 0 | Z131: 0 | AE131: 0 | AH131: 209 | AI131: 229.9 | AJ131: 198.55 | AK131: 188.1 | AL131: 177.65 | AM131: 167.2 | AN131: 156.75
A132: FLAT BALERINA CASUALES VESTIR LEON MUJER DAMA ORO ROSADO POLIPIEL 1000 | B132: 1000 | C132: NIÑA | D132: FLATS | E132: 18-21 | Y132: 0 | Z132: 0 | AE132: 0 | AH132: 209 | AI132: 229.9 | AJ132: 198.55 | AK132: 188.1 | AL132: 177.65 | AM132: 167.2 | AN132: 156.75
A133: TENIS CASUAL LEON MUJER BEIGE SINTETICO 1000 | B133: 1000 | C133: MUJER | D133: TENIS | E133: 23-27 | Y133: =SUM(F133:X133) -> 0 | Z133: =AH133*Y133 -> 0 | AB133: =Z133*AA133 ->  | AC133: =Z133-AB133 ->  | AE133: =Z133*1.1 -> 0 | AF133: =AE133-AC133 ->  | AG133: =(AE133/AC133)-1 ->  | AH133: 589 | AI133: =AH133*1.1 -> 647.9 | AJ133: =AH133*0.95 -> 559.55 | AK133: =AH133*0.9 -> 530.1 | AL133: =AH133*0.85 -> 500.65 | AM133: =AH133*0.8 -> 471.2 | AN133: =AH133*0.75 -> 441.75
A134: TENIS CASUAL LEON MUJER LATTE SINTETICO 1000 | B134: 1000 | C134: MUJER | D134: TENIS | E134: 23-27 | Y134: 0 | Z134: 0 | AE134: 0 | AH134: 589 | AI134: 647.9 | AJ134: 559.55 | AK134: 530.1 | AL134: 500.65 | AM134: 471.2 | AN134: 441.75
A135: TENIS CASUAL LEON MUJER NEGRO SINTETICO 1000 | B135: 1000 | C135: MUJER | D135: TENIS | E135: 23-27 | Y135: 0 | Z135: 0 | AE135: 0 | AH135: 589 | AI135: 647.9 | AJ135: 559.55 | AK135: 530.1 | AL135: 500.65 | AM135: 471.2 | AN135: 441.75
A136: ZAPATO DE VESTIR LEON HOMBRE NEGRO CHAROL 10008 | B136: 10008 | C136: HOMBRE | D136: ZAPATOS DE VESTIR | E136: 25-29 | Y136: 0 | Z136: 0 | AE136: 0 | AH136: 645 | AI136: 709.5 | AJ136: 612.75 | AK136: 580.5 | AL136: 548.25 | AM136: 516 | AN136: 483.75
A137: TENIS CASUALES GOSH GRIS DAMA MUJER TEXTIL 1000801 | B137: 1000801 | C137: MUJER | D137: TENIS | E137: 23-27 | Y137: 0 | Z137: 0 | AE137: 0 | AH137: 410 | AI137: 451 | AJ137: 389.5 | AK137: 369 | AL137: 348.5 | AM137: 328 | AN137: 307.5
A138: TENIS CASUALES SPORT GOSH MUJER DAMA NEGRO TEXTIL 1000803 | B138: 1000803 | C138: MUJER | D138: TENIS | E138: 23-26 | Y138: 0 | Z138: 0 | AE138: 0 | AH138: 435 | AI138: 478.5 | AJ138: 413.25 | AK138: 391.5 | AL138: 369.75 | AM138: 348 | AN138: 326.25
A139: TENIS CASUALES GOSH DAMA MUJER CAFE CANELA TEXTIL 1000C03 | B139: 1000C03 | C139: MUJER | D139: TENIS | E139: 23-27 | Y139: 0 | Z139: 0 | AE139: 0 | AH139: 555 | AI139: 610.5 | AJ139: 527.25 | AK139: 499.5 | AL139: 471.75 | AM139: 444 | AN139: 416.25
A140: TENIS CASUALES GOSH DAMA MUJER NEGRO TEXTIL 1000C04 | B140: 1000C04 | C140: MUJER | D140: TENIS | E140: 23-27 | Y140: 0 | Z140: 0 | AE140: 0 | AH140: 555 | AI140: 610.5 | AJ140: 527.25 | AK140: 499.5 | AL140: 471.75 | AM140: 444 | AN140: 416.25
A141: FLAT BALERINA CASUAL VESTIR LEON MUJER DAMA AZABACHE NEGRO GLITTER 1001 | B141: 1001 | C141: MUJER | D141: FLATS | E141: 23-26 | Y141: 0 | Z141: 0 | AE141: 0 | AH141: 295 | AI141: 324.5 | AJ141: 280.25 | AK141: 265.5 | AL141: 250.75 | AM141: 236 | AN141: 221.25
A142: SANDALIA CON TACON CASUAL VESTIR LEON NIÑA PLATA PIKE 1001 | B142: 1001 | C142: NIÑA | D142: SANDALIAS | E142: 18-24 | Y142: 0 | Z142: 0 | AE142: 0 | AH142: 619 | AI142: 680.9 | AJ142: 588.05 | AK142: 557.1 | AL142: 526.15 | AM142: 495.2 | AN142: 464.25
A143: SANDALIA CON TACON CASUAL VESTIR LEON NIÑA ORO PIKE 1001 | B143: 1001 | C143: NIÑA | D143: SANDALIAS | E143: 18-24 | Y143: 0 | Z143: 0 | AE143: 0 | AH143: 619 | AI143: 680.9 | AJ143: 588.05 | AK143: 557.1 | AL143: 526.15 | AM143: 495.2 | AN143: 464.25
A144: TENIS PLATAFORMA LEON MUJER TEXTIL NEGRO 1002 | B144: 1002 | C144: MUJER | D144: TENIS | E144: 23-26 | Y144: 0 | Z144: 0 | AE144: 0 | AH144: 450 | AI144: 495 | AJ144: 427.5 | AK144: 405 | AL144: 382.5 | AM144: 360 | AN144: 337.5
A145: SANDALIAS CASUALES LEON NIÑA VIBORA LECHE 1003 | B145: 1003 | C145: NIÑA | D145: SANDALIAS | E145: 18-24 | Y145: 0 | Z145: 0 | AE145: 0 | AH145: 520 | AI145: 572 | AJ145: 494 | AK145: 468 | AL145: 442 | AM145: 416 | AN145: 390
A146: SANDALIA CASUAL VESTIR LEON NIÑA PLATA ALINA 1003 | B146: 1003 | C146: NIÑA | D146: SANDALIAS | E146: 18-24 | Y146: 0 | Z146: 0 | AE146: 0 | AH146: 520 | AI146: 572 | AJ146: 494 | AK146: 468 | AL146: 442 | AM146: 416 | AN146: 390
A147: SANDALIA CASUAL VESTIR LEON NIÑA ROSA MARSELLA 1003 | B147: 1003 | C147: NIÑA | D147: SANDALIAS | E147: 18-24 | Y147: 0 | Z147: 0 | AE147: 0 | AH147: 520 | AI147: 572 | AJ147: 494 | AK147: 468 | AL147: 442 | AM147: 416 | AN147: 390
A148: BOTIN CASUAL LEON MUJER NEGRO SINTETICO 1003 | B148: 1003 | C148: MUJER | D148: BOTIN CASUAL | E148: 23-27 | Y148: 0 | Z148: 0 | AE148: 0 | AH148: 745 | AI148: 819.5 | AJ148: 707.75 | AK148: 670.5 | AL148: 633.25 | AM148: 596 | AN148: 558.75
A149: SANDALIA VESTIR LEON NIÑA PLATA GLITTER SEDA 2.5CM 1005 | B149: 1005 | C149: NIÑA | D149: SANDALIAS | E149: 18-24 | Y149: 0 | Z149: 0 | AE149: 0 | AH149: 589 | AI149: 647.9 | AJ149: 559.55 | AK149: 530.1 | AL149: 500.65 | AM149: 471.2 | AN149: 441.75
A150: SANDALIA VESTIR LEON NIÑA ROSA GLITTER SEDA 2.5CM 1005 | B150: 1005 | C150: NIÑA | D150: SANDALIAS | E150: 18-24 | Y150: 0 | Z150: 0 | AA150: =AA149 ->  | AE150: 0 | AH150: 589 | AI150: 647.9 | AJ150: 559.55 | AK150: 530.1 | AL150: 500.65 | AM150: 471.2 | AN150: 441.75
A151: BOTIN CASUAL LEON HOMBRE NEGRO PIEL 10058 | B151: 10058 | C151: HOMBRE | D151: BOTAS | E151: 25-29 | Y151: 0 | Z151: 0 | AE151: 0 | AH151: 785 | AI151: 863.5 | AJ151: 745.75 | AK151: 706.5 | AL151: 667.25 | AM151: 628 | AN151: 588.75
A152: SANDALIA CASUAL COQUETA NIÑO AZUL MARINO SINTETICO 100612e | B152: 100612e | C152: NIÑO | D152: SANDALIA | E152: 13-18 | Y152: 0 | Z152: 0 | AE152: 0 | AH152: 559 | AI152: 614.9 | AJ152: 531.05 | AK152: 503.1 | AL152: 475.15 | AM152: 447.2 | AN152: 419.25
A153: BOTA ALTA VESTIR CASUAL PELUCHE LEON NIÑA POLIPIEL NEGRO 101 | B153: 101 | C153: MUJER | D153: BOTAS ALTAS | E153: 22-27 | Y153: 0 | Z153: 0 | AE153: 0 | AH153: 640 | AI153: 704 | AJ153: 608 | AK153: 576 | AL153: 544 | AM153: 512 | AN153: 480
A154: BOTA ALTA VESTIR CASUAL PELUCHE LEON NIÑA POLIPIEL NEGRO 101 | B154: 101 | C154: NIÑA | D154: BOTAS | E154: 15-21 | Y154: 0 | Z154: 0 | AE154: 0 | AH154: 540 | AI154: 594 | AJ154: 513 | AK154: 486 | AL154: 459 | AM154: 432 | AN154: 405
A155: BOTIN CASUAL LEON NIÑO CAFE PIEL 101 | B155: 101 | C155: NIÑO | D155: BOTAS Y BOTINES | E155: .12-17 | Y155: 0 | Z155: 0 | AE155: 0 | AH155: 369 | AI155: 405.9 | AJ155: 350.55 | AK155: 332.1 | AL155: 313.65 | AM155: 295.2 | AN155: 276.75
A156: BOTIN CASUAL LEON NIÑO MARINO PIEL 101 | B156: 101 | C156: NIÑO | D156: BOTAS Y BOTINES | E156: .12-17 | Y156: 0 | Z156: 0 | AE156: 0 | AH156: 369 | AI156: 405.9 | AJ156: 350.55 | AK156: 332.1 | AL156: 313.65 | AM156: 295.2 | AN156: 276.75
A157: ZAPATOS CASUALES LEON HOMBRE BRANDY PIEL 1011 | B157: 1011 | C157: HOMBRE | D157: CASUALES | E157: 25-29 | Y157: 0 | Z157: 0 | AE157: 0 | AH157: 775 | AI157: 852.5 | AJ157: 736.25 | AK157: 697.5 | AL157: 658.75 | AM157: 620 | AN157: 581.25
A158: ZAPATOS CASUALES LEON HOMBRE NEGRO PIEL 1011 | B158: 1011 | C158: HOMBRE | D158: CASUALES | E158: 25-29 | Y158: 0 | Z158: 0 | AE158: 0 | AH158: 775 | AI158: 852.5 | AJ158: 736.25 | AK158: 697.5 | AL158: 658.75 | AM158: 620 | AN158: 581.25
A159: TENIS ZAPATOS CASUALES NIÑA LEON TACTO PIEL ORO 1011 | B159: 1011 | C159: NIÑA | D159: TENIS | E159: 13-17 | Y159: 0 | Z159: 0 | AE159: 0 | AH159: 360 | AI159: 396 | AJ159: 342 | AK159: 324 | AL159: 306 | AM159: 288 | AN159: 270
A160: SANDALIAS CASUALES COQUETA NIÑA BLANCO PIEL 101203B | B160: 101203B | C160: NIÑA | D160: SANDALIAS | E160: 13-18 | Y160: 0 | Z160: 0 | AE160: 0 | AH160: 460 | AI160: 506 | AJ160: 437 | AK160: 414 | AL160: 391 | AM160: 368 | AN160: 345
A161: SANDALIAS CASUALES COQUETA NIÑA ORO CHAROL 101515S | B161: 101515S | C161: NIÑA | D161: SANDALIAS | E161: 13-18 | Y161: 0 | Z161: 0 | AE161: 0 | AH161: 500 | AI161: 550 | AJ161: 475 | AK161: 450 | AL161: 425 | AM161: 400 | AN161: 375
A162: SANDALIAS CASUALES COQUETA BLANCO NIÑA PIEL 101520D | B162: 101520D | C162: NIÑA | D162: SANDALIAS | E162: 13-18 | Y162: 0 | Z162: 0 | AE162: 0 | AH162: 450 | AI162: 495 | AJ162: 427.5 | AK162: 405 | AL162: 382.5 | AM162: 360 | AN162: 337.5
A163: SANDALIAS CASUALES COQUETA ORO ROSADO NIÑA CHAROL 101520V | B163: 101520V | C163: NIÑA | D163: SANDALIAS | E163: 13-18 | Y163: 0 | Z163: 0 | AE163: 0 | AH163: 450 | AI163: 495 | AJ163: 427.5 | AK163: 405 | AL163: 382.5 | AM163: 360 | AN163: 337.5
A164: FLAT BALERINA CASUAL VESTIR LEON NIÑA DAMA MUJER ROSA 1016 | B164: 1016 | C164: MUJER | D164: FLATS | E164: 18-26 | Y164: 0 | Z164: 0 | AE164: 0 | AH164: 335 | AI164: 368.5 | AJ164: 318.25 | AK164: 301.5 | AL164: 284.75 | AM164: 268 | AN164: 251.25
A165: FLAT BALERINA CASUAL VESTIR LEON NIÑA DAMA MUJER ROSA 1016 | B165: 1016 | C165: NIÑA | D165: FLATS | E165: 13-17 | Y165: 0 | Z165: 0 | AE165: 0 | AH165: 309 | AI165: 339.9 | AJ165: 293.55 | AK165: 278.1 | AL165: 262.65 | AM165: 247.2 | AN165: 231.75
A166: FLAT BALERINA CASUAL VESTIR LEON NIÑA DAMA MUJER PLATINO PLATA 1016 | B166: 1016 | C166: NIÑA | D166: FLATS | E166: 13-17 | Y166: 0 | Z166: 0 | AE166: 0 | AH166: 309 | AI166: 339.9 | AJ166: 293.55 | AK166: 278.1 | AL166: 262.65 | AM166: 247.2 | AN166: 231.75
A167: SANDALIA CASUAL COQUETA NIÑA BLANCO SINTETICO 101605Y | B167: 101605Y | C167: NIÑA | D167: SANDALIAS | E167: 13-18 | Y167: 0 | Z167: 0 | AE167: 0 | AH167: 529 | AI167: 581.9 | AJ167: 502.55 | AK167: 476.1 | AL167: 449.65 | AM167: 423.2 | AN167: 396.75
A168: SANDALIA CASUAL COQUETA NIÑA ORO SINTETICO 101606S | B168: 101606S | C168: NIÑA | D168: SANDALIAS | E168: 13-18 | Y168: 0 | Z168: 0 | AE168: 0 | AH168: 529 | AI168: 581.9 | AJ168: 502.55 | AK168: 476.1 | AL168: 449.65 | AM168: 423.2 | AN168: 396.75
A169: ZAPATOS CASUALES LEON HOMBRE NEGRO PIEL 1016 | B169: 1016ZAP | C169: HOMBRE | D169: CASUALES | E169: 25-29 | Y169: 0 | Z169: 0 | AE169: 0 | AH169: 775 | AI169: 852.5 | AJ169: 736.25 | AK169: 697.5 | AL169: 658.75 | AM169: 620 | AN169: 581.25
A170: SANDALIA CASUAL COQUETA NIÑO MIEL PIEL 101703m | B170: 101703m | C170: NIÑO | D170: SANDALIA | E170: 13-18 | Y170: 0 | Z170: 0 | AE170: 0 | AH170: 559 | AI170: 614.9 | AJ170: 531.05 | AK170: 503.1 | AL170: 475.15 | AM170: 447.2 | AN170: 419.25
A171: FLAT BALERINA CASUAL VESTIR LEON NIÑA DAMA LENTEJUELAS MUJER MERCURIO 1018 | B171: 1018 | C171: MUJER | D171: FLATS | E171: 18-26 | Y171: 0 | Z171: 0 | AE171: 0 | AH171: 359 | AI171: 394.9 | AJ171: 341.05 | AK171: 323.1 | AL171: 305.15 | AM171: 287.2 | AN171: 269.25
A172: FLAT BALERINA CASUAL VESTIR LEON NIÑA DAMA LENTEJUELAS MUJER PLATA 1018 | B172: 1018 | C172: MUJER | D172: FLATS | E172: 18-29 | Y172: 0 | Z172: 0 | AE172: 0 | AH172: 359 | AI172: 394.9 | AJ172: 341.05 | AK172: 323.1 | AL172: 305.15 | AM172: 287.2 | AN172: 269.25
A173: FLAT BALERINA CASUAL VESTIR LEON NIÑA DAMA LENTEJUELAS MUJER MERCURIO 1018 | B173: 1018 | C173: NIÑA | D173: FLATS | E173: 13-17 | Y173: 0 | Z173: 0 | AE173: 0 | AH173: 329 | AI173: 361.9 | AJ173: 312.55 | AK173: 296.1 | AL173: 279.65 | AM173: 263.2 | AN173: 246.75
A174: FLAT BALERINA CASUAL VESTIR LEON NIÑA DAMA LENTEJUELAS MUJER PLATA 1018 | B174: 1018 | C174: NIÑA | D174: FLATS | E174: 13-17 | Y174: 0 | Z174: 0 | AE174: 0 | AH174: 329 | AI174: 361.9 | AJ174: 312.55 | AK174: 296.1 | AL174: 279.65 | AM174: 263.2 | AN174: 246.75
A175: SANDALIAS CASUALES COQUETA NIÑA ROSA PIEL 101800I | B175: 101800i | C175: NIÑA | D175: SANDALIAS | E175: 13-18 | Y175: 0 | Z175: 0 | AE175: 0 | AH175: 500 | AI175: 550 | AJ175: 475 | AK175: 450 | AL175: 425 | AM175: 400 | AN175: 375
A176: SANDALIAS CASUALES COQUETA NIÑA PERLA PIEL 101800Y | B176: 101800y | C176: NIÑA | D176: SANDALIAS | E176: 13-18 | Y176: 0 | Z176: 0 | AE176: 0 | AH176: 500 | AI176: 550 | AJ176: 475 | AK176: 450 | AL176: 425 | AM176: 400 | AN176: 375
A177: SANDALIAS CASUALES COQUETA NIÑA ORO PIEL 101801S | B177: 101801S | C177: NIÑA | D177: SANDALIAS | E177: 13-18 | Y177: 0 | Z177: 0 | AE177: 0 | AH177: 529 | AI177: 581.9 | AJ177: 502.55 | AK177: 476.1 | AL177: 449.65 | AM177: 423.2 | AN177: 396.75
A178: SANDALIAS CASUALES COQUETA NIÑA PERLA PIEL 101801Y | B178: 101801Y | C178: NIÑA | D178: SANDALIAS | E178: 13-18 | Y178: 0 | Z178: 0 | AE178: 0 | AH178: 549 | AI178: 603.9 | AJ178: 521.55 | AK178: 494.1 | AL178: 466.65 | AM178: 439.2 | AN178: 411.75
A179: TENIS CASUALES LEON DAMA MUJER TEXTIL NEGRO VIPER 10192 | B179: 10192 | C179: MUJER | D179: TENIS | E179: 23-27 | Y179: 0 | Z179: 0 | AE179: 0 | AH179: 319 | AI179: 350.9 | AJ179: 303.05 | AK179: 287.1 | AL179: 271.15 | AM179: 255.2 | AN179: 239.25
A180: TENIS CASUALES LEON GRIS DELFIN MUJER DAMA GAMUZA 12 | B180: 102 | C180: MUJER | D180: TENIS | E180: 23-27 | Y180: 0 | Z180: 0 | AE180: 0 | AH180: 440 | AI180: 484 | AJ180: 418 | AK180: 396 | AL180: 374 | AM180: 352 | AN180: 330
A181: ZAPATOS DE VESTIR LEON CABALLERO HOMBRE CAFE MIEL PIEL TERNERA 102 | B181: 102 | C181: HOMBRE | D181: ZAPATOS DE VESTIR | E181: 25-29 | Y181: 0 | Z181: 0 | AE181: 0 | AH181: 699 | AI181: 768.9 | AJ181: 664.05 | AK181: 629.1 | AL181: 594.15 | AM181: 559.2 | AN181: 524.25
A182: MOCASIN CASUAL LEON MUJER NEGRO PIEL 102 | B182: 102 | C182: MUJER | D182: MOCASINES | E182: 23-27 | Y182: 0 | Z182: 0 | AA182: =AA181 ->  | AE182: 0 | AH182: 609 | AI182: 669.9 | AJ182: 578.55 | AK182: 548.1 | AL182: 517.65 | AM182: 487.2 | AN182: 456.75
A183: TENIS BOTIN CASUAL COCA-COLA MUJER DAMA BLANCO TEXTIL 1021 | B183: 1021 | C183: MUJER | D183: TENIS | E183: 22-26 | Y183: 0 | Z183: 0 | AE183: 0 | AH183: 719 | AI183: 790.9 | AJ183: 683.05 | AK183: 647.1 | AL183: 611.15 | AM183: 575.2 | AN183: 539.25
A184: ZAPATOS CASUALES LEON DAMA MUJER GAMUZA NEGRO 1025 | B184: 1025 | C184: MUJER | D184: CASUAL | E184: 23-27 | Y184: 0 | Z184: 0 | AE184: 0 | AH184: 429 | AI184: 471.9 | AJ184: 407.55 | AK184: 386.1 | AL184: 364.65 | AM184: 343.2 | AN184: 321.75
A185: SANDALIAS TACONES VESTIR LEON PLATA DAMA MUJER TEXTIL VENUS 102825 | B185: 102825 | C185: MUJER | D185: SANDALIAS DE VESTIR Y FIESTA | E185: 23-27 | Y185: 0 | Z185: 0 | AE185: 0 | AH185: 490 | AI185: 539 | AJ185: 465.5 | AK185: 441 | AL185: 416.5 | AM185: 392 | AN185: 367.5
A186: SANDALIAS TACONES VESTIR LEON ORO RICH MUJER TEXTIL VENUS 102825 | B186: 102825 | C186: MUJER | D186: SANDALIAS DE VESTIR Y FIESTA | E186: 23-27 | Y186: 0 | Z186: 0 | AE186: 0 | AH186: 490 | AI186: 539 | AJ186: 465.5 | AK186: 441 | AL186: 416.5 | AM186: 392 | AN186: 367.5
A187: ZAPATO CASUAL LEON MUJER DAMA ROSA MAQUILLAJE CHAROL 1029 | B187: 1029 | C187: MUJER | D187: CASUAL | E187: 23-27 | Y187: 0 | Z187: 0 | AE187: 0 | AH187: 425 | AI187: 467.5 | AJ187: 403.75 | AK187: 382.5 | AL187: 361.25 | AM187: 340 | AN187: 318.75
A188: ZAPATOS DE VESTIR LEON CABALLERO HOMBRE NEGRO PIEL TERNERA 103 | B188: 103 | C188: HOMBRE | D188: ZAPATOS DE VESTIR | E188: 25-29 | Y188: 0 | Z188: 0 | AE188: 0 | AH188: 699 | AI188: 768.9 | AJ188: 664.05 | AK188: 629.1 | AL188: 594.15 | AM188: 559.2 | AN188: 524.25
A189: SANDALIAS TACONES VESTIR LEON DAMA MUJER PLATA GLITTER 103402 | B189: 103202 | C189: MUJER | D189: SANDALIAS DE VESTIR Y FIESTA | E189: 23-27 | Y189: 0 | Z189: 0 | AE189: 0 | AH189: 440 | AI189: 484 | AJ189: 418 | AK189: 396 | AL189: 374 | AM189: 352 | AN189: 330
A190: SANDALIAS TACONES VESTIR LEON DAMA MUJER AZUL REY GAMUZA 103402 | B190: 103402 | C190: MUJER | D190: SANDALIAS DE VESTIR Y FIESTA | E190: 23-27 | Y190: 0 | Z190: 0 | AE190: 0 | AH190: 440 | AI190: 484 | AJ190: 418 | AK190: 396 | AL190: 374 | AM190: 352 | AN190: 330
A191: SANDALIAS TACONES VESTIR LEON DAMA MUJER NEGRO GAMUZA 103402 | B191: 103402 | C191: MUJER | D191: SANDALIAS DE VESTIR Y FIESTA | E191: 23-27 | Y191: 0 | Z191: 0 | AE191: 0 | AH191: 440 | AI191: 484 | AJ191: 418 | AK191: 396 | AL191: 374 | AM191: 352 | AN191: 330
A192: SANDALIA CASUAL COQUETA NIÑA ROSA CHAROL 103710I | B192: 103710i | C192: NIÑA | D192: SANDALIAS | E192: 13-17 | Y192: 0 | Z192: 0 | AE192: 0 | AH192: 479 | AI192: 526.9 | AJ192: 455.05 | AK192: 431.1 | AL192: 407.15 | AM192: 383.2 | AN192: 359.25
A193: SANDALIA CASUAL COQUETA NIÑA ROSA CHAROL 103710I | B193: 103710i | C193: NIÑA | D193: SANDALIAS | E193: 18-21 | Y193: 0 | Z193: 0 | AE193: 0 | AH193: 499 | AI193: 548.9 | AJ193: 474.05 | AK193: 449.1 | AL193: 424.15 | AM193: 399.2 | AN193: 374.25
A194: SANDALIA CASUAL LEON COQUETA PERLA CHAROL 103710y | B194: 103710y | C194: NIÑA | D194: SANDALIAS | E194: 18-21 | Y194: 0 | Z194: 0 | AE194: 0 | AH194: 499 | AI194: 548.9 | AJ194: 474.05 | AK194: 449.1 | AL194: 424.15 | AM194: 399.2 | AN194: 374.25
A195: SANDALIA CASUAL COQUETA NIÑA PERLA CHAROL 103710y | B195: 103710y | C195: NIÑA | D195: SANDALIAS | E195: 13-17 | Y195: 0 | Z195: 0 | AE195: 0 | AH195: 479 | AI195: 526.9 | AJ195: 455.05 | AK195: 431.1 | AL195: 407.15 | AM195: 383.2 | AN195: 359.25
A196: ZAPATO CASUAL VESTIR PAZSTOR HOMBRE CABALLERO PIEL DE BORREGO NEGRO 104 | B196: 104 | C196: HOMBRE | D196: ZAPATOS DE VESTIR | E196: 25-29 | Y196: 0 | Z196: 0 | AE196: 0 | AH196: 1099 | AI196: 1208.9 | AJ196: 1044.05 | AK196: 989.1 | AL196: 934.15 | AM196: 879.2 | AN196: 824.25
A197: BOTA ALTA VESTIR CASUAL PELUCHE LEON NIÑA DAMA GAMUZA FERRERO CAFE 104 | B197: 104 | C197: NIÑA | D197: BOTAS | E197: 15-21 | Y197: =SUM(F197:X197) -> 0 | Z197: =AH197*Y197 -> 0 | AB197: =Z197*AA197 ->  | AC197: =Z197-AB197 ->  | AE197: =Z197*1.1 -> 0 | AF197: =AE197-AC197 ->  | AG197: =(AE197/AC197)-1 ->  | AH197: 540 | AI197: =AH197*1.1 -> 594 | AJ197: =AH197*0.95 -> 513 | AK197: =AH197*0.9 -> 486 | AL197: =AH197*0.85 -> 459 | AM197: =AH197*0.8 -> 432 | AN197: =AH197*0.75 -> 405
A198: ZAPATO DE VESTIR LEON HOMBRE NEGRO CHAROL 10507G1 | B198: 10507G1 | C198: HOMBRE | D198: ZAPATOS DE VESTIR | E198: 25-29 | Y198: 0 | Z198: 0 | AE198: 0 | AH198: 655 | AI198: 720.5 | AJ198: 622.25 | AK198: 589.5 | AL198: 556.75 | AM198: 524 | AN198: 491.25
A199: BOTAS INDUSTRIALES LEON HOMBRE CABALLERO CAFE CAOBA PIEL 1051 | B199: 1051 | C199: HOMBRE | D199: BOTAS DE TRABAJO | E199: 25-29 | Y199: 0 | Z199: 0 | AE199: 0 | AH199: 765 | AI199: 841.5 | AJ199: 726.75 | AK199: 688.5 | AL199: 650.25 | AM199: 612 | AN199: 573.75
A200: ZAPATOS DE VESTIR LEON HOMBRE CABALLERO CAFE POLIPIEL 10522 | B200: 10522 | C200: HOMBRE | D200: ZAPATOS DE VESTIR | E200: 25-29 | Y200: 0 | Z200: 0 | AE200: 0 | AH200: 675 | AI200: 742.5 | AJ200: 641.25 | AK200: 607.5 | AL200: 573.75 | AM200: 540 | AN200: 506.25
A201: ZAPATOS DE VESTIR LEON HOMBRE CABALLERO NEGRO POLIPIEL 10522 | B201: 10522 | C201: HOMBRE | D201: ZAPATOS DE VESTIR | E201: 25-29 | Y201: 0 | Z201: 0 | AE201: 0 | AH201: 675 | AI201: 742.5 | AJ201: 641.25 | AK201: 607.5 | AL201: 573.75 | AM201: 540 | AN201: 506.25
... 2046 more rows

Sheet Hoja1
A1: pares
A2: desde | B2: hasta | C2: descuento
A3: 1 | B3: 2 | C3: 0
A4: 3 | B4: 5 | C4: 0.1
A5: 6 | B5: 11 | C5: 0.15
A6: 12 | B6: 24 | C6: 0.2
A7: 25 | B7: 29 | C7: 0.25
A8: 30 | B8: 999999 | C8: 0.3
